Cogmind - Beta 13 @@@ ROGUE MODE // 2024.06.25 @ 16:24:18 Player: ZergFTW Result: Destroyed by KC-3EW(R) with Subdweller Laser Performance ------------- Evolutions (0) 0 Regions Visited (2) 400 Robots Destroyed (30) 150 Value Destroyed (458) 458 Prototype IDs (10) 200 Alien Tech Used (0) 0 Bonus (-70) -70 TOTAL SCORE: 1138 Bonus ------- Friendly Fire -70 Cogmind --------- Core Integrity 0/250 Matter 261/300 Energy 98/100 System Corruption 2% Temperature Cool (6) Movement Rolling (110) Ox2 Location -10/Subcaves Parts ------- > --- POWER (1) -------- (None) > --- PROPULSION (2) --- Wheel Wheel > --- UTILITY (2) ------ High-capacity Storage Unit Sensor Array > --- WEAPON (2) ------- Assault Rifle Assault Rifle > --- INVENTORY (20) --- Ion Engine Ion Engine Light Ion Engine Arachnoskeleton Compact Wheel High-capacity Matter Pod (200) Weight Redist. System Structural Scanner Structural Scanner Visual Processing Unit Sensor Array Seismic Detector Core Shielding Light Armor Plating Assault Rifle Light Cannon Grenade Launcher Datajack Peak State ------------ > --- POWER ------------ Ion Engine > --- PROPULSION ------- Wheel Wheel > --- UTILITY ---------- High-capacity Storage Unit Structural Scanner > --- WEAPON ----------- Assault Rifle Light Cannon > --- INVENTORY -------- Ion Engine Ion Engine Light Ion Engine Arachnoskeleton Compact Wheel High-capacity Matter Pod Weight Redist. System Structural Scanner Visual Processing Unit Sensor Array Sensor Array Seismic Detector Core Shielding Light Armor Plating Assault Rifle Assault Rifle Grenade Launcher Datajack [Rating: 11] Favorites ----------- Power Ion Engine Engine Ion Engine Propulsion Wheel Treads Light Treads Wheel Wheel Utility High-capacity Storage Unit Device Structural Scanner Storage High-capacity Storage Unit Weapon Assault Rifle Energy Gun EM Pulse Gun Ballistic Gun Assault Rifle Ballistic Cannon Light Cannon Build | -11 -10 -10 ------- Run | Yrd Mat Sub Slots Evolved . | . . . Power . | . . . Propulsion . | . . . Utility . | . . . Weapon . | . . . Parts Attached 33 | 9 17 7 Power 4 | 1 1 2 Engine 4 | 1 1 2 Core . | . . . Reactor . | . . . Propulsion 11 | 3 6 2 Treads 2 | . 2 . Leg . | . . . Wheel 9 | 3 4 2 Hover . | . . . Flight . | . . . Utility 7 | 3 3 1 Device 5 | 2 2 1 Storage 2 | 1 1 . Processor . | . . . Hackware . | . . . Protection . | . . . Artifact . | . . . Weapon 11 | 2 7 2 Energy Gun 4 | . 4 . Energy Cannon . | . . . Ballistic Gun 6 | 2 3 1 Ballistic Cannon 1 | . . 1 Launcher . | . . . Special Weapon . | . . . Impact Weapon . | . . . Slashing Weapon . | . . . Piercing Weapon . | . . . Special Melee Weapon . | . . . Unidentified Prototypes . | . . . Parts Lost 8 | . 7 1 Power 2 | . 1 1 Propulsion 2 | . 2 . Utility 1 | . 1 . Weapon 3 | . 3 . Highest Loss Streak 7 | . 7 1 To Critical Strikes . | . . . Average Slot Usage (%) 98 | . 97 98 Engine 13 | . 13 13 Wheel 27 | . 27 28 Device 13 | . 13 14 Storage 14 | . 14 14 Energy Gun 3 | . 4 . Ballistic Gun 24 | . 23 26 Naked Turns . | . . . Heaviest Build 51 | 15 50 51 Greatest Support 26 | 26 20 20 Greatest Overweight (x) 2 | . 2 2 Average Overweight (x) 1 | . 1 2 Largest Inventory Capacity 20 | 8 20 20 Average Capacity 19 | 6 19 20 Most Carried 20 | 5 20 20 Average Carried 16 | 4 15 19 Final Capacity 20 | 8 20 20 Final Carried 20 | 5 20 20 Class Distribution -------------------- 100% | Mutant Dominant Class ---------------- Mutant | -10/Materials Mutant | -10/Subcaves Resources | -11 -10 -10 ----------- Run | Yrd Mat Sub Matter Collected 1228 | 406 670 152 Remotely . | . . . Salvage Created 963 | 181 736 46 Parts 56 | 9 45 2 Haulers Intercepted 1 | . 1 . Recyclers Shooed . | . . . Parts Field Recycled . | . . . Retrieved Matter . | . . . Parts Self-Destructed 6 | . . 6 Prevented . | . . . Kills | -11 -10 -10 ------- Run | Yrd Mat Sub Combat Hostiles Destroyed 11 | . 10 1 Guns 11 | . 10 1 Classes Destroyed 11 | 3 6 2 Worker 5 | 2 3 . Builder 4 | . 4 . Tunneler 3 | 2 1 . Hauler 1 | . 1 . Recycler 3 | 1 2 . Operator 1 | . 1 . Watcher 2 | . 2 . Swarmer 3 | . 3 . Grunt 7 | . 7 . Artisan 1 | . . 1 Subdweller 1 | . . 1 Best Kill Streak 8 | 3 8 1 Combat Bots Only 4 | . 4 1 Max Kills in Single Turn 1 | 1 1 1 Gunslinging . | . . . Exploded . | . . . Melee . | . . . Uniques/NPCs Destroyed . | . . . Combat | -11 -10 -10 -------- Run | Yrd Mat Sub Hostile Shots Fired 93 | . 74 19 Missed 25 | . 19 6 Damage Taken 1000 | . 651 349 Core 264 | . 147 117 Absorbed by Shields . | . . . Regen/Repaired (Parts) 5 | . 5 . Core Remaining (%) 100 | 100 . . Volleys Fired 97 | 11 64 22 Largest 2 | 2 2 2 Hottest 80 | 40 80 40 Shots Fired 176 | 22 125 29 Gun 161 | 22 125 14 Cannon 15 | . . 15 Launcher . | . . . Special . | . . . Kinetic 134 | 22 83 29 Thermal 11 | . 11 . Explosive . | . . . Electromagnetic 31 | . 31 . Robot Hit Streak 17 | 6 17 16 Robot Miss Streak 7 | 4 7 . Penetration Max . | . . . Secondary Targets 1 | . 1 . Max Gunslinging Chain 1 | . 1 . Shots Hit Robots 94 | 10 72 12 Core Hits 41 | 5 32 4 Critical Kills 3 | . 3 . Critical Parts Destroyed 2 | . 2 . Critical Strikes 6 | . 6 . Burn 1 | . 1 . Destroy 5 | . 5 . Melee Attacks . | . . . Impact . | . . . Slashing . | . . . Piercing . | . . . Sneak Attacks . | . . . Combat Hostiles . | . . . Follow-up Attacks . | . . . Damage Inflicted 1299 | 142 1003 154 Guns 1242 | 142 946 154 Cannons . | . . . Explosions 57 | . 57 . Melee . | . . . Ramming . | . . . Kinetic 914 | 142 618 154 Thermal 161 | . 161 . Explosive . | . . . Electromagnetic 224 | . 224 . Impact . | . . . Slashing . | . . . Piercing . | . . . Highest Corruption 2 | . 2 2 Average Corruption 2 | . 2 2 Corruption Purged . | . . . Corruption Blocked . | . . . Effects 16 | . 9 7 Message Errors 6 | . 4 2 Matter Fused 4 | . 1 3 Heat Flow Errors 1 | . 1 . Energy Discharges 3 | . 3 . Data Loss (minor) 1 | . . 1 Alerts 1 | . . 1 Overload Shots . | . . . Overflow Damage 7 | . 7 . Projectiles . | . . . Explosions 7 | . 7 . Melee . | . . . Knockbacks . | . . . Impact . | . . . Kinetic . | . . . Secondary . | . . . Self-Inflicted Damage 53 | . 53 . Shots 1 | . 1 . Rammed . | . . . Targets Rammed . | . . . Kicked . | . . . Crushed . | . . . Highest Temperature 178 | . 178 . Average Temperature 75 | . 75 . Received Heat Transfer 315 | . 285 30 Siege Activations . | . . . Robots Corrupted . | . . . Combat Hostiles . | . . . Parts Fried . | . . . Impact Corruptions . | . . . Robots Melted . | . . . Combat Hostiles . | . . . Parts Melted 1 | . 1 . Heat Transferred 420 | . 420 . Parts Sabotaged . | . . . Parts Stolen . | . . . Parts Stripped . | . . . Power Chain Reactions 2 | . 2 . Alert | -11 -10 -10 ------- Run | Yrd Mat Sub Peak Influence 171 | 25 171 . Initial 16 | . 16 . Average 49 | 8 52 . Maximum Alert Level . | . . . Low Security (%) 100 | 100 100 . Level 1 . | . . . Level 2 . | . . . Level 3 . | . . . Level 4 . | . . . Level 5 . | . . . High Security . | . . . Max Security . | . . . Squads Dispatched 3 | . 3 . Investigation 3 | . 3 . Extermination . | . . . Reinforcement . | . . . Assault . | . . . Garrison . | . . . Intercept . | . . . Searches Triggered . | . . . Construction Impeded . | . . . Haulers Reinforced . | . . . Active Scanning Responses . | . . . Cargo Convoy Interrupts . | . . . Stealth | -11 -10 -10 --------- Run | Yrd Mat Sub Distress Signals 2 | . 2 . Communications Jammed . | . . . Distress Signals . | . . . Times Spotted 22 | . 16 6 Peak Tracking Total 7 | . 7 3 Tactical Retreats 1 | . . 1 Traps | -11 -10 -10 ------- Run | Yrd Mat Sub Traps Triggered 4 | . 3 1 Indirectly . | . . . Trap Hack Attempts . | . . . Triggered . | . . . Disarmed . | . . . Reprogrammed . | . . . Reused . | . . . Traps Extracted . | . . . Installed . | . . . Triggered 1 | . . 1 Machines | -11 -10 -10 ---------- Run | Yrd Mat Sub Machines Disabled 2 | . 1 1 Max in Single Turn 1 | . 1 1 Machines Repaired . | . . . Machines Dismantled . | . . . Machines Sabotaged . | . . . Overloaded Fab Kills . | . . . Hacking | -11 -10 -10 --------- Run | Yrd Mat Sub Machines Accessed 11 | . 10 1 Terminals 7 | . 7 . Fabricators . | . . . Repair Stations 1 | . 1 . Recycling Units 2 | . 2 . Scanalyzers . | . . . Garrison Access . | . . . Total Hacks 29 | . 28 1 Successful 13 | . 12 1 Failed 16 | . 16 . Catastrophic 2 | . 2 . Database Lockouts . | . . . Manual 19 | . 19 . Terminals 22 | . 22 . Fabricators . | . . . Repair Stations 2 | . 2 . Recycling Units 4 | . 4 . Scanalyzers . | . . . Garrison Access . | . . . Terminal Hacks 8 | . 7 1 Robot Analysis 1 | . 1 . Branch Access Points 1 | . 1 . Terminal Index 1 | . 1 . Unreport Threat 1 | . 1 . Locate Traps 2 | . 2 . Recall Investigation 1 | . 1 . Derelict Proto ID Bank 1 | . . 1 Fabricator Hacks . | . . . Repair Station Hacks 2 | . 2 . Scan Component 1 | . 1 . Repair 1 | . 1 . Recycling Unit Hacks 2 | . 2 . Report Inventory 2 | . 2 . Scanalyzer . | . . . Garrison Access Hacks . | . . . Unauthorized Hacks 1 | . 1 . Terminals 1 | . 1 . Assimilate 1 | . 1 . Fabricators . | . . . Repair Stations . | . . . Recycling Units . | . . . Scanalyzers . | . . . Garrison Access . | . . . Data Cores Recovered 1 | . 1 . Used . | . . . Hacking Detections 8 | . 8 . Full Trace Events 3 | . 3 . Feedback Events . | . . . Feedback Blocked . | . . . Robot Schematics Acquired . | . . . Robots Built . | . . . Authchips . | . . . Time . | . . . Total Robot Build Rating . | . . . Part Schematics Acquired . | . . . Parts Built . | . . . Authchips . | . . . Time . | . . . Total Part Build Rating . | . . . Parts Repaired 1 | . 1 . Time 16 | . 16 . Parts Recycled . | . . . Recycled Matter . | . . . Retrieved Matter . | . . . Retrieved Components . | . . . Parts Scanalyzed . | . . . Part Schematics Acquired . | . . . Parts Damaged . | . . . Bothacking | -11 -10 -10 ------------ Run | Yrd Mat Sub Used RIF Installer . | . . . Robots Hacked . | . . . Non-combat . | . . . Combat . | . . . Robot Hacks Applied . | . . . Relay Couplers Released . | . . . Fabnet Peak Effective % . | . . . Robots Rewired . | . . . Allies Hacked . | . . . Hacks Repelled . | . . . Allies | -11 -10 -10 -------- Run | Yrd Mat Sub Total Allies . | . . . Largest Group . | . . . Highest-Rated Group . | . . . Highest-Rated Ally . | . . . Total Orders . | . . . Ally Attacks . | . . . Total Damage . | . . . Kills . | . . . Allies Corrupted . | . . . Allies Melted . | . . . Intel | -11 -10 -10 ------- Run | Yrd Mat Sub Robot Analysis Total 1 | . 1 . Derelict Logs Recovered . | . . . Drone Launches . | . . . Drone Recoveries . | . . . Exploration | -11 -10 -10 ------------- Run | Yrd Mat Sub Turns Passed 2348 | 119 1657 572 Spaces Moved 1499 | 78 974 447 Core 8 | 8 . . Treads . | . . . Legs . | . . . Wheels 1491 | 70 974 447 Hover . | . . . Flight . | . . . Fastest Speed 50 | 50 80 110 Average Speed 108 | 81 109 110 Slowest Speed 110 | 90 110 110 Overloaded Moves . | . . . Propulsion Burnouts . | . . . Robots Hopped . | . . . Cave-ins Triggered . | . . . Exploration Rate (%) 43 | 5 98 26 Regions Visited 2 Branch Regions 1 Pre-discovered Areas . | . . . Known Exits Taken . | . . . Unknown Exits Taken 2 | 1 1 . Scrap Searched 5 | . . 5 Spaces Dug . | . . . Terrain Destroyed 8 | . 8 . Melee . | . . . Projectile . | . . . AOE 8 | . 8 . Terrain Rammed . | . . . Walls Destroyed . | . . . Machines Disabled . | . . . Actions | -11 -10 -10 --------- Run | Yrd Mat Sub Total 2046 | 111 1438 497 Wait 361 | . 345 16 Move 1497 | 77 973 447 Hop . | . . . Pick Up 44 | 12 31 1 Fast Attach 1 | 1 . . Attach 15 | 6 8 1 Detach . | . . . Swap 17 | 2 9 6 Drop 14 | 2 8 4 Fire 97 | 11 64 22 Melee . | . . . Ram . | . . . Kick . | . . . Crush . | . . . Escape Stasis . | . . . Rewire . | . . . Trap . | . . . Miscellaneous . | . . . Route ------- -11/Scrapyard -10/Materials (discovered 6 exits: [*Mat x3] / *Min x2 / *Sub) -10/Subcaves History --------- Turn | Location | Event 8 | -11/Scrapyard | Discovered new exit (range 15) 120 | -11/Scrapyard | Entered Materials 318 | -10/Materials | Build established: Mutant 685 | -10/Materials | Identified exit to Mines 735 | -10/Materials | Discovered new exit (range 10) 850 | -10/Materials | Repaired Weight Redist. System 1120 | -10/Materials | Discovered new exit (range 15) 1189 | -10/Materials | Core integrity fell below 50% 1216 | -10/Materials | Lost 7 parts (1p2n1u3w) 1245 | -10/Materials | Discovered new exit (range 9) 1650 | -10/Materials | Discovered new exit (range 10) 1777 | -10/Materials | Entered Subcaves 1988 | -10/Subcaves | Visited 4L-MR0's lab 2011 | -10/Subcaves | Found Arachnoskeleton 2222 | -10/Subcaves | Core integrity fell below 20% 2349 | -10/Subcaves | Destroyed by KC-3EW(R) with Subdweller Laser Last Messages --------------- 02279_ Acquired 26 matter. 02280_ Searching scrap... 02280_ Found Piercing Trap. 02280_ Found Mak. Shrapnel Gun. 02280_ Found 16 Matter. 02281_ Acquired 16 matter. 02281_ Searching scrap... 02281_ Found Sub. Laser. 02281_ Found 22 Matter. 02282_ Acquired 22 matter. 02283_ Searching scrap... 02283_ Found Mak. System Shield. 02283_ Found 15 Matter. 02284_ Acquired 15 matter. 02287_ Searching scrap... 02287_ Found Sub. Power Source. 02287_ Found 24 Matter. 02288_ Acquired 24 matter. 02306_ Ion Engine destroyed. 02330_ KC-3EW(R): "ECOKILL!" Map ----- +----------------------------------------------------+ | ????????? ######## ##### ##??????????? | | ??????# ### ######## ##??????????? | | #####?### ### #####?##########??????????? | | """"#### ### #######????#######??????????? | | " ### ### #######??????????????????????? | | ## ### ###??????????????????????? | | ###" ## ###?????????????????????? | | # #"" ## ###?????????????????????? | | & # ### ##?????????????????????? | | [# ### ##?????????????????????? | | $[# #" ## ##?????????????????????? | | ## ## # ## ## ###????????????????????? | | "# # ####### ####???????????????????? | | " "## # ######## ####??????????????????? | | " ## ## ##??#### ####?????????????????? | | " ### ## #???#### ###?????????????????? | | "#### # ##?????#### ##?????????????????? | | ####??## ##????##### ##?????????????????? | | ???????## #?????### ###?????????????????? | | ???????## #?????## ####?????????????????? | | ????????# #?????## ####??????????????????? | | ????????## ##????### ########??????????????? | | ?????????## ###??#### #########?????????????? | | ?????????## ##?### #### ###?????????????? | | ???????### #?## ## ####???????????? | | ???????# ########@ ######?????????? | | ??????## ####### ## ###?????????? | | ??????# ##### # ##?????????? | | ??????# #### ## ##?????????? | | ??????# ##### ##? ## ####???????? | | ??????# ##?## ##?#### ####???????? | | ??????## ##?### ###?## ##???????? | | ???????# ###### ######? ##???????? | | ???????## #?#### ###### #?????????? | | ????????## #??### #### ##?????????? | | ?????????# ######R ### ### ##?????????? | | ?????????# ### #### ## ####???????? | | ?????????####?# ###### ## ] ############ | | ??????????????# #### ### ## =%&""##"####### | | ??????????????## ##### # # & "" # ## | | ??????????????## ##### [ | | ?????????????? # ##### # " " #### | | ?????????????? # #### ## # ###" """####### | | ?????????????## ### ########"" ########## | | ??????????????## ## ? ########"" #####???## | | ???????????????# ????????########??????### | | ??????????????? ?????????#######??????#### | | ?????????????? ????????????????????????### | | ????????????? ??????????????????????????? | | ?????????????? ??????????????????????????? | +----------------------------------------------------+ Best States ------------- Heat Dissipation 25 Energy Generation 15 Energy Capacity 250 Matter Stores 300 Matter Capacity 300 Sight Range 16 Robot Scan Range 14 Terrain Scan Range 16 Terrain Scan Density 10 Evasion (%) 50 Item Schematics ----------------- None Robot Schematics ------------------ None Fabricated ------------ Nothing Alien Tech Used ----------------- None Achievements -------------- None Challenges ------------ None Game ------ Seed GreatAlloyRouter Manual? 0 Play Time 00:31:23 Cumulative 36.5 hours Start 2024.06.25 @ 15:54:44 End 2024.06.25 @ 16:24:18 Sessions 1 Manual Loads 0 Difficulty Rogue Special Mode None Game No. 27 Rogue 26 Adventurer 1 Explorer 0 Win Type - Total 0 Types 0/0/0/0/0/0/0/0/0 Lore% 21 Gallery% 22 Achievement% 24 Wizard Run 0 Options --------- Layout 1 ASCII 0 Keyboard 0 Movement Mouse Keybinds 0 Fullscreen 1 Font 20/SmallcapsGlow Map View 50x35 Zoom Use 0% Tactical HUD 1 Map Filters NONE Filters NONE Steam 1 RUN: a2807948-a48e-4104-b5e2-e98490dc50a3